[Event "January 2 Early 2024"]
[Site "https://www.chess.com"]
[Date "2024.01.02"]
[Round "5"]
[White "Pogorelskikh, Sofia"]
[Black "Tilahun , Abel Mathewos"]
[Result "1-0"]
[Board "185"]
[TimeControl "180+1"]
[WhiteFideId "44164548"]
[BlackFideId "15702391"]
[WhiteElo "2296"]
[BlackElo "2070"]
[WhiteTeam "SRB"]
[BlackTeam "ETH"]
[WhiteClock "0:00:07"]
[BlackClock "0:00:00"]

1. e4 {[%clk 0:03:00]}  e6 {[%clk 0:02:58]} 2. d4 {[%clk 0:03:00]}  d5 {[%clk 0:02:59]} 3. Nc3 {[%clk 0:03:00]}  dxe4 {[%clk 0:02:58]} 4. Nxe4 {[%clk 0:03:00]}  Nd7 {[%clk 0:02:59]} 5. Nf3 {[%clk 0:02:57]}  Ngf6 {[%clk 0:03:00]} 6. Ng3 {[%clk 0:02:56]}  Be7 {[%clk 0:03:01]} 7. Bd3 {[%clk 0:02:55]}  O-O {[%clk 0:03:02]} 8. O-O {[%clk 0:02:51]}  b6 {[%clk 0:03:01]} 9. c3 {[%clk 0:02:33]}  Bb7 {[%clk 0:03:02]} 10. Re1 {[%clk 0:02:32]}  c5 {[%clk 0:03:01]} 11. Ne5 {[%clk 0:02:07]}  cxd4 {[%clk 0:03:00]} 12. cxd4 {[%clk 0:02:07]}  Nd5 {[%clk 0:03:00]} 13. Bd2 {[%clk 0:01:44]}  Bb4 {[%clk 0:02:59]} 14. Bxb4 {[%clk 0:01:01]}  Nxb4 {[%clk 0:02:59]} 15. Be4 {[%clk 0:01:01]}  Nd5 {[%clk 0:02:52]} 16. Nxd7 {[%clk 0:00:51]}  Qxd7 {[%clk 0:02:49]} 17. a3 {[%clk 0:00:39]}  Rac8 {[%clk 0:02:45]} 18. Rc1 {[%clk 0:00:36]}  g6 {[%clk 0:02:43]} 19. h4 {[%clk 0:00:27]}  Nf4 {[%clk 0:02:40]} 20. Qf3 {[%clk 0:00:23]}  Nd5 {[%clk 0:02:33]} 21. h5 {[%clk 0:00:23]}  Qb5 {[%clk 0:02:14]} 22. hxg6 {[%clk 0:00:18]}  hxg6 {[%clk 0:02:00]} 23. Rxc8 {[%clk 0:00:17]}  Rxc8 {[%clk 0:01:52]} 24. Bxg6 {[%clk 0:00:13]}  fxg6 {[%clk 0:01:05]} 25. Qg4 {[%clk 0:00:13]}  Qd7 {[%clk 0:00:38]} 26. Qxg6+ {[%clk 0:00:12]}  Kf8 {[%clk 0:00:39]} 27. Rxe6 {[%clk 0:00:11]}  Rc6 {[%clk 0:00:17]} 28. Qh6+ {[%clk 0:00:09]}  Kg8 {[%clk 0:00:15]} 29. Qg6+ {[%clk 0:00:04]}  Kf8 {[%clk 0:00:15]} 30. Qf5+ {[%clk 0:00:03]}  Kg8 {[%clk 0:00:12]} 31. Rg6+ {[%clk 0:00:03]}  Rxg6 {[%clk 0:00:10]} 32. Qxd7 {[%clk 0:00:03]}  Bc6 {[%clk 0:00:08]} 33. Qd8+ {[%clk 0:00:03]}  Kh7 {[%clk 0:00:08]} 34. Qh4+ {[%clk 0:00:03]}  Kg7 {[%clk 0:00:08]} 35. Nf5+ {[%clk 0:00:02]}  Kf7 {[%clk 0:00:07]} 36. g3 {[%clk 0:00:02]}  Ke6 {[%clk 0:00:08]} 37. Ne3 {[%clk 0:00:01]}  Nf6 {[%clk 0:00:06]} 38. Qh3+ {[%clk 0:00:01]}  Kf7 {[%clk 0:00:06]} 39. Qf5 {[%clk 0:00:02]}  Rh6 {[%clk 0:00:05]} 40. d5 {[%clk 0:00:02]}  Bxd5 {[%clk 0:00:04]} 41. Nxd5 {[%clk 0:00:02]}  Rh5 {[%clk 0:00:04]} 42. Qxf6+ {[%clk 0:00:03]}  Kg8 {[%clk 0:00:03]} 43. Qg6+ {[%clk 0:00:03]}  Kf8 {[%clk 0:00:02]} 44. Qxh5 {[%clk 0:00:04]}  Kg7 {[%clk 0:00:02]} 45. f4 {[%clk 0:00:05]}  b5 {[%clk 0:00:01]} 46. f5 {[%clk 0:00:06]}  b4 {[%clk 0:00:02]} 47. f6+ {[%clk 0:00:07]}  Kg8 {[%clk 0:00:00]} 48. Qg6+ {[%clk 0:00:07]} 1-0

[Event "January 2 Early 2024"]
[Site "https://www.chess.com"]
[Date "2024.01.02"]
[Round "5"]
[White "Delgado Kuffo, Andres"]
[Black "Castillo Pena, Patricia Evarista"]
[Result "1-0"]
[Board "188"]
[TimeControl "180+1"]
[WhiteFideId "3600475"]
[BlackFideId "6412106"]
[WhiteElo "2226"]
[BlackElo "1925"]
[WhiteTeam "ECU"]
[BlackTeam "DOM"]
[WhiteClock "0:01:39"]
[BlackClock "0:01:01"]

1. e4 {[%clk 0:03:00]}  c5 {[%clk 0:02:59]} 2. Nf3 {[%clk 0:02:53]}  d6 {[%clk 0:02:58]} 3. d4 {[%clk 0:02:52]}  cxd4 {[%clk 0:02:57]} 4. Qxd4 {[%clk 0:02:53]}  Nf6 {[%clk 0:02:54]} 5. e5 {[%clk 0:02:52]}  dxe5 {[%clk 0:02:52]} 6. Qxd8+ {[%clk 0:02:49]}  Kxd8 {[%clk 0:02:53]} 7. Bc4 {[%clk 0:02:49]}  e6 {[%clk 0:02:48]} 8. Nxe5 {[%clk 0:02:48]}  Ke8 {[%clk 0:02:47]} 9. Nc3 {[%clk 0:02:45]}  Bd6 {[%clk 0:02:45]} 10. Bb5+ {[%clk 0:02:44]}  Nbd7 {[%clk 0:02:43]} 11. Nc4 {[%clk 0:02:42]}  Be7 {[%clk 0:02:40]} 12. Bf4 {[%clk 0:02:38]}  a6 {[%clk 0:02:15]} 13. Nb6 {[%clk 0:02:35]}  axb5 {[%clk 0:02:06]} 14. Nxa8 {[%clk 0:02:34]}  Bb4 {[%clk 0:01:47]} 15. Nc7+ {[%clk 0:02:26]}  Ke7 {[%clk 0:01:46]} 16. Nxb5 {[%clk 0:02:25]}  Nd5 {[%clk 0:01:42]} 17. Bd2 {[%clk 0:02:24]}  Nxc3 {[%clk 0:01:40]} 18. Bxc3 {[%clk 0:02:23]}  Bxc3+ {[%clk 0:01:39]} 19. Nxc3 {[%clk 0:02:23]}  Nc5 {[%clk 0:01:38]} 20. O-O-O {[%clk 0:02:22]}  Rd8 {[%clk 0:01:37]} 21. Rxd8 {[%clk 0:02:19]}  Kxd8 {[%clk 0:01:38]} 22. b4 {[%clk 0:02:18]}  Nd7 {[%clk 0:01:35]} 23. Rd1 {[%clk 0:02:18]}  Ke7 {[%clk 0:01:35]} 24. a4 {[%clk 0:02:17]}  Nb6 {[%clk 0:01:35]} 25. f4 {[%clk 0:02:13]}  Bd7 {[%clk 0:01:35]} 26. a5 {[%clk 0:02:12]}  Nc4 {[%clk 0:01:34]} 27. Rd4 {[%clk 0:02:10]}  Ne3 {[%clk 0:01:28]} 28. g3 {[%clk 0:02:06]}  Nf5 {[%clk 0:01:25]} 29. Rd3 {[%clk 0:01:59]}  Bc6 {[%clk 0:01:23]} 30. b5 {[%clk 0:01:57]}  Bd7 {[%clk 0:01:23]} 31. Kb2 {[%clk 0:01:51]}  Nd6 {[%clk 0:01:23]} 32. Kb3 {[%clk 0:01:44]}  Bxb5 {[%clk 0:01:01]} 33. Rxd6 {[%clk 0:01:39]} 1-0

[Event "January 2 Early 2024"]
[Site "https://www.chess.com"]
[Date "2024.01.02"]
[Round "5"]
[White "Zhuk, Valeriy"]
[Black "Viana, Valeria"]
[Result "1-0"]
[Board "191"]
[TimeControl "180+1"]
[WhiteFideId "24151254"]
[BlackFideId "8407100"]
[WhiteElo "2395"]
[BlackElo "2143"]
[WhiteTeam "RUS"]
[BlackTeam "HON"]
[WhiteClock "0:02:11"]
[BlackClock "0:01:47"]

1. e4 {[%clk 0:03:00]}  c6 {[%clk 0:02:59]} 2. d4 {[%clk 0:03:00]}  d5 {[%clk 0:02:59]} 3. e5 {[%clk 0:03:01]}  Bf5 {[%clk 0:02:57]} 4. h4 {[%clk 0:03:00]}  h5 {[%clk 0:02:56]} 5. c4 {[%clk 0:03:00]}  e6 {[%clk 0:02:53]} 6. Nc3 {[%clk 0:03:00]}  Nd7 {[%clk 0:02:48]} 7. Bg5 {[%clk 0:02:54]}  Qb6 {[%clk 0:02:44]} 8. Qd2 {[%clk 0:02:50]}  Bb4 {[%clk 0:02:32]} 9. c5 {[%clk 0:02:39]}  Qc7 {[%clk 0:02:29]} 10. a3 {[%clk 0:02:39]}  Bxc3 {[%clk 0:02:28]} 11. Qxc3 {[%clk 0:02:40]}  b6 {[%clk 0:02:27]} 12. b4 {[%clk 0:02:38]}  Nh6 {[%clk 0:02:23]} 13. Ne2 {[%clk 0:02:26]}  Bg6 {[%clk 0:02:09]} 14. Nf4 {[%clk 0:02:24]}  Bh7 {[%clk 0:02:02]} 15. Nxh5 {[%clk 0:02:22]}  Nf5 {[%clk 0:01:59]} 16. g4 {[%clk 0:02:19]}  Bg6 {[%clk 0:01:58]} 17. Nf4 {[%clk 0:02:11]}  Bh7 {[%clk 0:01:47]} 18. gxf5 {[%clk 0:02:11]} 1-0

[Event "January 2 Early 2024"]
[Site "https://www.chess.com"]
[Date "2024.01.02"]
[Round "5"]
[White "Novikova, Margarita"]
[Black "Gerbelli Neto, Eduardo"]
[Result "1-0"]
[Board "192"]
[TimeControl "180+1"]
[WhiteFideId "14109689"]
[BlackFideId "2103281"]
[WhiteElo "2102"]
[BlackElo "2348"]
[WhiteTeam "GER"]
[BlackTeam "BRA"]
[WhiteClock "0:00:22"]
[BlackClock "0:00:03"]

1. e4 {[%clk 0:02:59]}  e5 {[%clk 0:02:59]} 2. Nf3 {[%clk 0:02:59]}  Nc6 {[%clk 0:03:00]} 3. Bc4 {[%clk 0:02:48]}  Nf6 {[%clk 0:02:59]} 4. d3 {[%clk 0:02:44]}  Bc5 {[%clk 0:02:59]} 5. c3 {[%clk 0:02:44]}  d6 {[%clk 0:02:59]} 6. Bg5 {[%clk 0:02:43]}  h6 {[%clk 0:02:59]} 7. Bh4 {[%clk 0:02:43]}  g5 {[%clk 0:02:59]} 8. Bg3 {[%clk 0:02:43]}  O-O {[%clk 0:02:50]} 9. O-O {[%clk 0:02:39]}  Be6 {[%clk 0:02:29]} 10. Bxe6 {[%clk 0:02:36]}  fxe6 {[%clk 0:02:29]} 11. b4 {[%clk 0:02:34]}  Bb6 {[%clk 0:02:28]} 12. a4 {[%clk 0:02:34]}  a6 {[%clk 0:02:27]} 13. Qb3 {[%clk 0:02:32]}  Qd7 {[%clk 0:02:22]} 14. Nbd2 {[%clk 0:02:31]}  Ne7 {[%clk 0:02:20]} 15. Nc4 {[%clk 0:02:25]}  Ba7 {[%clk 0:02:18]} 16. Ncxe5 {[%clk 0:02:15]}  dxe5 {[%clk 0:02:16]} 17. Nxe5 {[%clk 0:02:15]}  Qc8 {[%clk 0:02:08]} 18. Rae1 {[%clk 0:02:02]}  Kg7 {[%clk 0:02:07]} 19. d4 {[%clk 0:02:02]}  c6 {[%clk 0:01:59]} 20. h4 {[%clk 0:01:59]}  Bb8 {[%clk 0:01:47]} 21. hxg5 {[%clk 0:01:54]}  hxg5 {[%clk 0:01:48]} 22. Qd1 {[%clk 0:01:49]}  Ng6 {[%clk 0:01:42]} 23. Nc4 {[%clk 0:01:38]}  Bxg3 {[%clk 0:01:23]} 24. fxg3 {[%clk 0:01:39]}  Qc7 {[%clk 0:01:23]} 25. e5 {[%clk 0:01:36]}  Nd5 {[%clk 0:01:21]} 26. Qd3 {[%clk 0:01:32]}  Qe7 {[%clk 0:00:59]} 27. Nd6 {[%clk 0:01:30]}  Rxf1+ {[%clk 0:00:57]} 28. Rxf1 {[%clk 0:01:30]}  Rf8 {[%clk 0:00:57]} 29. Rf3 {[%clk 0:01:26]}  Rxf3 {[%clk 0:00:44]} 30. gxf3 {[%clk 0:01:27]}  b5 {[%clk 0:00:44]} 31. a5 {[%clk 0:01:20]}  g4 {[%clk 0:00:44]} 32. fxg4 {[%clk 0:01:16]}  Qg5 {[%clk 0:00:41]} 33. Qf3 {[%clk 0:01:11]}  Qe3+ {[%clk 0:00:26]} 34. Qxe3 {[%clk 0:01:08]}  Nxe3 {[%clk 0:00:27]} 35. c4 {[%clk 0:01:07]}  Nxc4 {[%clk 0:00:24]} 36. Nb7 {[%clk 0:01:04]}  Ne7 {[%clk 0:00:20]} 37. Nd8 {[%clk 0:01:03]}  Kg6 {[%clk 0:00:19]} 38. Nxe6 {[%clk 0:01:02]}  Ne3 {[%clk 0:00:18]} 39. Nc5 {[%clk 0:00:59]}  Nc2 {[%clk 0:00:16]} 40. Nxa6 {[%clk 0:00:59]}  Kg5 {[%clk 0:00:14]} 41. Kf2 {[%clk 0:00:46]}  Kxg4 {[%clk 0:00:13]} 42. Ke2 {[%clk 0:00:41]}  Nxd4+ {[%clk 0:00:14]} 43. Kd3 {[%clk 0:00:40]}  Ne6 {[%clk 0:00:14]} 44. Nb8 {[%clk 0:00:39]}  Kxg3 {[%clk 0:00:12]} 45. Ke4 {[%clk 0:00:39]}  Nc7 {[%clk 0:00:12]} 46. a6 {[%clk 0:00:37]}  Kf2 {[%clk 0:00:10]} 47. a7 {[%clk 0:00:38]}  Ke2 {[%clk 0:00:11]} 48. Na6 {[%clk 0:00:36]}  Na8 {[%clk 0:00:10]} 49. e6 {[%clk 0:00:36]}  Kd2 {[%clk 0:00:10]} 50. Ke5 {[%clk 0:00:36]}  Kc3 {[%clk 0:00:10]} 51. Kd6 {[%clk 0:00:37]}  Nd5 {[%clk 0:00:06]} 52. e7 {[%clk 0:00:35]}  Nxe7 {[%clk 0:00:05]} 53. Kxe7 {[%clk 0:00:36]}  Kc4 {[%clk 0:00:05]} 54. Kd6 {[%clk 0:00:36]}  c5 {[%clk 0:00:05]} 55. bxc5 {[%clk 0:00:36]}  b4 {[%clk 0:00:06]} 56. Nxb4 {[%clk 0:00:35]}  Kxb4 {[%clk 0:00:06]} 57. c6 {[%clk 0:00:35]}  Kb5 {[%clk 0:00:06]} 58. c7 {[%clk 0:00:35]}  Nb6 {[%clk 0:00:03]} 59. a8=Q {[%clk 0:00:35]}  Nxa8 {[%clk 0:00:03]} 60. c8=Q {[%clk 0:00:36]}  Nb6 {[%clk 0:00:04]} 61. Qc1 {[%clk 0:00:35]}  Nc4+ {[%clk 0:00:04]} 62. Ke7 {[%clk 0:00:34]}  Nb6 {[%clk 0:00:04]} 63. Qb2+ {[%clk 0:00:34]}  Kc6 {[%clk 0:00:04]} 64. Qc3+ {[%clk 0:00:34]}  Kb5 {[%clk 0:00:03]} 65. Qb3+ {[%clk 0:00:34]}  Kc5 {[%clk 0:00:03]} 66. Kd8 {[%clk 0:00:33]}  Nd5 {[%clk 0:00:03]} 67. Kd7 {[%clk 0:00:32]}  Nb6+ {[%clk 0:00:03]} 68. Ke6 {[%clk 0:00:32]}  Nc4 {[%clk 0:00:02]} 69. Qc3 {[%clk 0:00:30]}  Kb5 {[%clk 0:00:03]} 70. Kd5 {[%clk 0:00:30]}  Nb6+ {[%clk 0:00:03]} 71. Kd4 {[%clk 0:00:29]}  Na4 {[%clk 0:00:04]} 72. Qc4+ {[%clk 0:00:28]}  Ka5 {[%clk 0:00:04]} 73. Qb3 {[%clk 0:00:26]}  Nb6 {[%clk 0:00:03]} 74. Kc5 {[%clk 0:00:25]}  Na4+ {[%clk 0:00:03]} 75. Kc6 {[%clk 0:00:23]}  Ka6 {[%clk 0:00:03]} 76. Qxa4# {[%clk 0:00:22]} 1-0

[Event "January 2 Early 2024"]
[Site "https://www.chess.com"]
[Date "2024.01.02"]
[Round "5"]
[White "Kekic, Armin"]
[Black "Brandao, Marcius Gomes"]
[Result "0-1"]
[Board "194"]
[TimeControl "180+1"]
[WhiteFideId "14401274"]
[BlackFideId "2124980"]
[WhiteElo "2304"]
[BlackElo "2052"]
[WhiteTeam "BIH"]
[BlackTeam "BRA"]
[WhiteClock "0:01:21"]
[BlackClock "0:01:15"]

1. e4 {[%clk 0:02:54]}  c5 {[%clk 0:02:59]} 2. Nf3 {[%clk 0:02:50]}  Nc6 {[%clk 0:02:59]} 3. d4 {[%clk 0:02:50]}  cxd4 {[%clk 0:02:59]} 4. Nxd4 {[%clk 0:02:51]}  e5 {[%clk 0:03:00]} 5. Nb5 {[%clk 0:02:50]}  d6 {[%clk 0:03:00]} 6. N1c3 {[%clk 0:02:50]}  a6 {[%clk 0:03:00]} 7. Na3 {[%clk 0:02:51]}  Be7 {[%clk 0:03:01]} 8. Nd5 {[%clk 0:02:50]}  Nf6 {[%clk 0:03:00]} 9. Bd3 {[%clk 0:02:49]}  Nxd5 {[%clk 0:02:55]} 10. exd5 {[%clk 0:02:48]}  Qa5+ {[%clk 0:02:55]} 11. c3 {[%clk 0:02:44]}  Qxd5 {[%clk 0:02:53]} 12. Qe2 {[%clk 0:02:39]}  Qxg2 {[%clk 0:02:49]} 13. Be4 {[%clk 0:02:37]}  Qh3 {[%clk 0:02:37]} 14. Nc4 {[%clk 0:02:36]}  Bg4 {[%clk 0:02:23]} 15. f3 {[%clk 0:02:36]}  Be6 {[%clk 0:02:21]} 16. Nb6 {[%clk 0:02:34]}  Bh4+ {[%clk 0:02:12]} 17. Kd1 {[%clk 0:02:32]}  Rd8 {[%clk 0:02:00]} 18. Nd5 {[%clk 0:02:32]}  O-O {[%clk 0:01:49]} 19. Nc7 {[%clk 0:02:07]}  d5 {[%clk 0:01:40]} 20. Bc2 {[%clk 0:02:02]}  d4 {[%clk 0:01:36]} 21. Nxe6 {[%clk 0:01:48]}  fxe6 {[%clk 0:01:30]} 22. c4 {[%clk 0:01:39]}  d3 {[%clk 0:01:23]} 23. Bxd3 {[%clk 0:01:21]}  Rxf3 {[%clk 0:01:15]} 0-1

[Event "January 2 Early 2024"]
[Site "https://www.chess.com"]
[Date "2024.01.02"]
[Round "5"]
[White "Floresvillar Gonzalez, Luis Migu"]
[Black "Thake, Conrad"]
[Result "0-1"]
[Board "196"]
[TimeControl "180+1"]
[WhiteFideId "5100542"]
[BlackFideId "5602947"]
[WhiteElo "2178"]
[BlackElo "1875"]
[WhiteTeam "MEX"]
[BlackTeam "MLT"]
[WhiteClock "0:00:00"]
[BlackClock "0:00:01"]

1. e4 {[%clk 0:03:00]}  c5 {[%clk 0:03:00]} 2. d4 {[%clk 0:02:57]}  e6 {[%clk 0:02:58]} 3. c3 {[%clk 0:02:48]}  d5 {[%clk 0:02:58]} 4. exd5 {[%clk 0:02:46]}  exd5 {[%clk 0:02:57]} 5. Bb5+ {[%clk 0:02:45]}  Nc6 {[%clk 0:02:56]} 6. Qe2+ {[%clk 0:02:44]}  Be7 {[%clk 0:02:52]} 7. dxc5 {[%clk 0:02:44]}  Nf6 {[%clk 0:02:52]} 8. Nf3 {[%clk 0:02:43]}  O-O {[%clk 0:02:51]} 9. O-O {[%clk 0:02:43]}  Re8 {[%clk 0:02:43]} 10. Bg5 {[%clk 0:02:37]}  Bg4 {[%clk 0:02:38]} 11. Nbd2 {[%clk 0:02:28]}  Bxc5 {[%clk 0:02:38]} 12. Qd3 {[%clk 0:02:18]}  Be6 {[%clk 0:02:16]} 13. Rad1 {[%clk 0:02:11]}  a6 {[%clk 0:02:15]} 14. Ba4 {[%clk 0:02:10]}  h6 {[%clk 0:02:11]} 15. Bh4 {[%clk 0:02:08]}  Be7 {[%clk 0:01:32]} 16. Rfe1 {[%clk 0:02:03]}  Qa5 {[%clk 0:01:26]} 17. Bc2 {[%clk 0:01:57]}  g6 {[%clk 0:01:11]} 18. Rxe6 {[%clk 0:01:44]}  Ne4 {[%clk 0:00:45]} 19. Rxe7 {[%clk 0:01:23]}  Nxe7 {[%clk 0:00:40]} 20. Nxe4 {[%clk 0:01:15]}  dxe4 {[%clk 0:00:39]} 21. Qxe4 {[%clk 0:01:11]}  Nf5 {[%clk 0:00:35]} 22. Qg4 {[%clk 0:00:39]}  Nxh4 {[%clk 0:00:29]} 23. Nxh4 {[%clk 0:00:38]}  Qg5 {[%clk 0:00:22]} 24. Qxg5 {[%clk 0:00:32]}  hxg5 {[%clk 0:00:22]} 25. Nf3 {[%clk 0:00:32]}  Re2 {[%clk 0:00:20]} 26. Bb3 {[%clk 0:00:26]}  Rxb2 {[%clk 0:00:14]} 27. Nxg5 {[%clk 0:00:24]}  Rf8 {[%clk 0:00:14]} 28. h4 {[%clk 0:00:22]}  Kg7 {[%clk 0:00:14]} 29. Rd7 {[%clk 0:00:20]}  Rb1+ {[%clk 0:00:13]} 30. Kh2 {[%clk 0:00:19]}  Rf1 {[%clk 0:00:11]} 31. f3 {[%clk 0:00:17]}  b5 {[%clk 0:00:10]} 32. Ne6+ {[%clk 0:00:16]}  Kg8 {[%clk 0:00:08]} 33. Nxf8 {[%clk 0:00:16]}  Kxf8 {[%clk 0:00:09]} 34. Rxf7+ {[%clk 0:00:16]}  Ke8 {[%clk 0:00:09]} 35. Rf6 {[%clk 0:00:16]}  a5 {[%clk 0:00:05]} 36. Rxg6 {[%clk 0:00:15]}  a4 {[%clk 0:00:06]} 37. Be6 {[%clk 0:00:13]}  Rc1 {[%clk 0:00:05]} 38. Rg7 {[%clk 0:00:09]}  Rxc3 {[%clk 0:00:05]} 39. Bd7+ {[%clk 0:00:09]}  Kf8 {[%clk 0:00:04]} 40. Rh7 {[%clk 0:00:08]}  a3 {[%clk 0:00:02]} 41. Bxb5 {[%clk 0:00:06]}  Rc2 {[%clk 0:00:01]} 42. Ba4 {[%clk 0:00:00]}  Rxa2 {[%clk 0:00:01]} 0-1

[Event "January 2 Early 2024"]
[Site "https://www.chess.com"]
[Date "2024.01.02"]
[Round "6"]
[White "Svane, Frederik"]
[Black "Mamedyarov, Shakhriyar"]
[Result "0-1"]
[Board "1"]
[TimeControl "180+1"]
[WhiteFideId "12923044"]
[BlackFideId "13401319"]
[WhiteElo "3042"]
[BlackElo "3056"]
[WhiteTeam "GER"]
[BlackTeam "AZE"]
[WhiteClock "0:00:05"]
[BlackClock "0:00:38"]

1. e4 {[%clk 0:03:00]}  d5 {[%clk 0:02:59]} 2. exd5 {[%clk 0:03:01]}  Qxd5 {[%clk 0:03:00]} 3. Nc3 {[%clk 0:03:01]}  Qa5 {[%clk 0:03:01]} 4. d4 {[%clk 0:03:01]}  Nf6 {[%clk 0:03:01]} 5. Nf3 {[%clk 0:03:02]}  Bf5 {[%clk 0:03:02]} 6. Bc4 {[%clk 0:03:02]}  e6 {[%clk 0:03:02]} 7. Bd2 {[%clk 0:03:01]}  Bb4 {[%clk 0:03:02]} 8. a3 {[%clk 0:03:02]}  Bxc3 {[%clk 0:03:02]} 9. Bxc3 {[%clk 0:03:03]}  Qb6 {[%clk 0:03:03]} 10. O-O {[%clk 0:03:01]}  Nc6 {[%clk 0:03:02]} 11. a4 {[%clk 0:02:46]}  a5 {[%clk 0:03:02]} 12. h3 {[%clk 0:02:34]}  O-O {[%clk 0:02:58]} 13. Qe2 {[%clk 0:02:33]}  Rad8 {[%clk 0:02:55]} 14. Rfd1 {[%clk 0:02:20]}  Be4 {[%clk 0:02:49]} 15. Nd2 {[%clk 0:01:58]}  Bxc2 {[%clk 0:02:44]} 16. Rdc1 {[%clk 0:01:53]}  Bg6 {[%clk 0:02:42]} 17. Nb3 {[%clk 0:01:50]}  Nd5 {[%clk 0:02:40]} 18. Bb5 {[%clk 0:01:44]}  Ncb4 {[%clk 0:02:37]} 19. Bc4 {[%clk 0:01:41]}  c6 {[%clk 0:02:36]} 20. Nc5 {[%clk 0:01:30]}  Qc7 {[%clk 0:02:32]} 21. Bb3 {[%clk 0:01:19]}  Rfe8 {[%clk 0:02:30]} 22. Rd1 {[%clk 0:01:06]}  h6 {[%clk 0:02:13]} 23. Be1 {[%clk 0:01:06]}  Qb6 {[%clk 0:01:59]} 24. Qe5 {[%clk 0:00:58]}  Nf6 {[%clk 0:01:55]} 25. Rac1 {[%clk 0:00:50]}  Nbd5 {[%clk 0:01:47]} 26. Bd2 {[%clk 0:00:42]}  Nd7 {[%clk 0:01:43]} 27. Qg3 {[%clk 0:00:42]}  N7f6 {[%clk 0:01:37]} 28. Qe5 {[%clk 0:00:41]}  Nb4 {[%clk 0:01:34]} 29. Bc3 {[%clk 0:00:30]}  Nfd5 {[%clk 0:01:26]} 30. Qe1 {[%clk 0:00:26]}  Qa7 {[%clk 0:01:25]} 31. Bxd5 {[%clk 0:00:26]}  exd5 {[%clk 0:01:24]} 32. Qd2 {[%clk 0:00:25]}  Na2 {[%clk 0:01:19]} 33. Ra1 {[%clk 0:00:25]}  Nxc3 {[%clk 0:01:20]} 34. bxc3 {[%clk 0:00:25]}  b6 {[%clk 0:01:20]} 35. Nd3 {[%clk 0:00:24]}  Bxd3 {[%clk 0:01:17]} 36. Qxd3 {[%clk 0:00:25]}  Re6 {[%clk 0:01:17]} 37. Re1 {[%clk 0:00:23]}  Rde8 {[%clk 0:01:16]} 38. Rxe6 {[%clk 0:00:23]}  Rxe6 {[%clk 0:01:17]} 39. Rb1 {[%clk 0:00:24]}  g6 {[%clk 0:01:14]} 40. g3 {[%clk 0:00:24]}  Kg7 {[%clk 0:01:14]} 41. h4 {[%clk 0:00:24]}  h5 {[%clk 0:01:15]} 42. Kg2 {[%clk 0:00:24]}  Qb7 {[%clk 0:01:07]} 43. Kg1 {[%clk 0:00:19]}  Re4 {[%clk 0:01:07]} 44. Kg2 {[%clk 0:00:20]}  Re8 {[%clk 0:01:04]} 45. Kg1 {[%clk 0:00:20]}  Rb8 {[%clk 0:01:02]} 46. c4 {[%clk 0:00:20]}  dxc4 {[%clk 0:01:01]} 47. Qxc4 {[%clk 0:00:20]}  Qd7 {[%clk 0:01:01]} 48. Rc1 {[%clk 0:00:21]}  b5 {[%clk 0:01:00]} 49. Qxc6 {[%clk 0:00:20]}  Qxc6 {[%clk 0:01:00]} 50. Rxc6 {[%clk 0:00:21]}  bxa4 {[%clk 0:01:00]} 51. Rc5 {[%clk 0:00:19]}  Ra8 {[%clk 0:00:55]} 52. Rc4 {[%clk 0:00:19]}  a3 {[%clk 0:00:51]} 53. Ra4 {[%clk 0:00:19]}  Kf6 {[%clk 0:00:51]} 54. Kf1 {[%clk 0:00:19]}  Ke6 {[%clk 0:00:51]} 55. Ke2 {[%clk 0:00:20]}  Kd5 {[%clk 0:00:52]} 56. Kd3 {[%clk 0:00:20]}  a2 {[%clk 0:00:52]} 57. Rxa2 {[%clk 0:00:20]}  a4 {[%clk 0:00:53]} 58. Ra3 {[%clk 0:00:21]}  f6 {[%clk 0:00:51]} 59. f3 {[%clk 0:00:18]}  g5 {[%clk 0:00:52]} 60. Kc3 {[%clk 0:00:18]}  Rc8+ {[%clk 0:00:45]} 61. Kd3 {[%clk 0:00:19]}  Rc4 {[%clk 0:00:46]} 62. Ke3 {[%clk 0:00:16]}  Rxd4 {[%clk 0:00:45]} 63. Rc3 {[%clk 0:00:16]}  Rb4 {[%clk 0:00:43]} 64. hxg5 {[%clk 0:00:14]}  fxg5 {[%clk 0:00:44]} 65. Rc8 {[%clk 0:00:13]}  Rb3+ {[%clk 0:00:43]} 66. Kf2 {[%clk 0:00:13]}  a3 {[%clk 0:00:44]} 67. Ra8 {[%clk 0:00:11]}  Kc4 {[%clk 0:00:44]} 68. f4 {[%clk 0:00:11]}  g4 {[%clk 0:00:41]} 69. Ra4+ {[%clk 0:00:04]}  Kc3 {[%clk 0:00:40]} 70. f5 {[%clk 0:00:05]}  Kb2 {[%clk 0:00:40]} 71. f6 {[%clk 0:00:05]}  a2 {[%clk 0:00:39]} 72. f7 {[%clk 0:00:05]}  Rf3+ {[%clk 0:00:38]} 73. Kg2 {[%clk 0:00:05]}  a1=Q {[%clk 0:00:38]} 0-1

[Event "January 2 Early 2024"]
[Site "https://www.chess.com"]
[Date "2024.01.02"]
[Round "6"]
[White "Corrales Jimenez, Fidel"]
[Black "Xiong, Jeffery"]
[Result "1-0"]
[Board "2"]
[TimeControl "180+1"]
[WhiteFideId "3506690"]
[BlackFideId "2047640"]
[WhiteElo "2936"]
[BlackElo "3046"]
[WhiteTeam "USA"]
[BlackTeam "USA"]
[WhiteClock "0:02:02"]
[BlackClock "0:00:56"]

1. e4 {[%clk 0:03:00]}  e6 {[%clk 0:03:00]} 2. d4 {[%clk 0:03:00]}  d5 {[%clk 0:03:01]} 3. e5 {[%clk 0:03:01]}  c5 {[%clk 0:03:01]} 4. c3 {[%clk 0:03:01]}  Nc6 {[%clk 0:02:58]} 5. Nf3 {[%clk 0:02:58]}  Bd7 {[%clk 0:02:55]} 6. a3 {[%clk 0:02:55]}  c4 {[%clk 0:02:46]} 7. Be2 {[%clk 0:02:53]}  Na5 {[%clk 0:02:46]} 8. Nbd2 {[%clk 0:02:52]}  Ne7 {[%clk 0:02:46]} 9. O-O {[%clk 0:02:52]}  Nc8 {[%clk 0:02:47]} 10. Qe1 {[%clk 0:02:50]}  Ba4 {[%clk 0:02:46]} 11. Bd1 {[%clk 0:02:50]}  Nb6 {[%clk 0:02:45]} 12. Bxa4+ {[%clk 0:02:40]}  Nxa4 {[%clk 0:02:46]} 13. Qd1 {[%clk 0:02:40]}  Qd7 {[%clk 0:02:46]} 14. Re1 {[%clk 0:02:40]}  Be7 {[%clk 0:02:45]} 15. Rb1 {[%clk 0:02:40]}  O-O-O {[%clk 0:02:42]} 16. Nf1 {[%clk 0:02:40]}  Kb8 {[%clk 0:02:41]} 17. Ng3 {[%clk 0:02:40]}  h5 {[%clk 0:02:41]} 18. h4 {[%clk 0:02:40]}  Nb6 {[%clk 0:02:34]} 19. Bg5 {[%clk 0:02:40]}  Rde8 {[%clk 0:02:18]} 20. Bxe7 {[%clk 0:02:38]}  Rxe7 {[%clk 0:02:19]} 21. Ng5 {[%clk 0:02:39]}  f6 {[%clk 0:02:19]} 22. Nh3 {[%clk 0:02:34]}  Nc6 {[%clk 0:02:15]} 23. Nf4 {[%clk 0:02:28]}  Rh6 {[%clk 0:02:12]} 24. Nfxh5 {[%clk 0:02:24]}  fxe5 {[%clk 0:02:12]} 25. dxe5 {[%clk 0:02:25]}  d4 {[%clk 0:02:10]} 26. Qg4 {[%clk 0:02:21]}  d3 {[%clk 0:02:08]} 27. Rbd1 {[%clk 0:02:19]}  Qd8 {[%clk 0:01:26]} 28. Nf4 {[%clk 0:02:18]}  a5 {[%clk 0:01:17]} 29. h5 {[%clk 0:02:15]}  a4 {[%clk 0:01:17]} 30. Ng6 {[%clk 0:02:14]}  Re8 {[%clk 0:01:17]} 31. Ne4 {[%clk 0:02:13]}  Ka7 {[%clk 0:00:57]} 32. Nd6 {[%clk 0:02:09]}  Reh8 {[%clk 0:00:57]} 33. Nf7 {[%clk 0:02:04]}  Qf8 {[%clk 0:00:56]} 34. Nfxh8 {[%clk 0:02:03]}  Rxh8 {[%clk 0:00:56]} 35. Nxf8 {[%clk 0:02:02]} 1-0